fUSD/lending_fUSD_20250410
["ID","MTS","AMOUNT","RATE_DAILY","PERIOD"]
[357657057,1744284638873,-303.87,0.00042573,5]
[357657058,1744284638882,-302.0,0.00042573,5]
[357657059,1744284638891,-300.24,0.00042573,5]
[357657060,1744284638900,-304.19,0.00042573,5]
[357657061,1744284638909,-303.58,0.00042573,5]
[357657062,1744284639121,-302.3,0.00042573,5]
[357657063,1744284639137,-301.07,0.00042573,5]
[357657064,1744284639146,-301.68,0.00042573,5]
[357657065,1744284639155,-300.86,0.00042573,5]
[357657066,1744284639165,-305.73,0.00042573,5]
[357657067,1744284639175,-300.42,0.00042573,5]
[357657068,1744284639184,-304.76,0.00042573,5]
[357657069,1744284639194,-304.7,0.00042573,5]
[357657070,1744284639202,-303.28,0.00042573,5]
[357657071,1744284639212,-301.01,0.00042573,5]
[357657072,1744284639224,-303.38,0.00042573,5]
[357657073,1744284639234,-301.46,0.00042573,5]
[357657074,1744284639243,-304.21,0.00042573,5]
[357657075,1744284639252,-301.69,0.00042573,5]
[357657076,1744284639262,-303.78,0.00042573,5]
[357657077,1744284639272,-300.69,0.00042573,5]
[357657078,1744284639281,-301.17,0.00042573,5]
[357657079,1744284639290,-301.52,0.00042573,5]
[357657080,1744284639301,-303.49,0.00042573,5]
[357657081,1744284639312,-301.15,0.00042573,5]
[357657082,1744284639321,-300.86,0.00042573,5]
[357657083,1744284639330,-303.36,0.00042573,5]
[357657084,1744284639339,-304.34,0.00042573,5]
[357657085,1744284639349,-300.87,0.00042573,5]
[357657086,1744284639359,-300.84,0.00042573,5]
[357657087,1744284639369,-304.76,0.00042573,5]
[357657088,1744284639378,-301.72,0.00042573,5]
[357657089,1744284639388,-304.64,0.00042573,5]
[357657090,1744284639399,-305.52,0.00042573,5]
[357657091,1744284639408,-301.2,0.00042573,5]
[357657092,1744284639417,-304.94,0.00042573,5]
[357657093,1744284639427,-301.12,0.00042573,5]
[357657094,1744284639436,-304.28,0.00042573,5]
[357657095,1744284639446,-301.26,0.00042573,5]
[357657096,1744284639455,-300.79,0.00042573,5]
[357657097,1744284639464,-300.5,0.00042573,5]
[357657098,1744284639473,-303.19,0.00042573,5]
[357657099,1744284639483,-303.04,0.00042573,5]
[357657100,1744284639492,-302.45,0.00042573,5]
[357657101,1744284639501,-304.61,0.00042573,5]
[357657102,1744284639511,-301.8,0.00042573,5]
[357657103,1744284639520,-300.65,0.00042573,5]
[357657104,1744284639529,-302.9,0.00042573,5]
[357657105,1744284639538,-304.45,0.00042573,5]
[357657106,1744284639548,-305.04,0.00042613,5]
[357657107,1744284639557,-305.29,0.00042613,5]
[357657108,1744284639566,-303.42,0.00042613,5]
[357657109,1744284639575,-300.84,0.00042613,5]
[357657110,1744284639584,-305.0,0.00042613,5]
[357657111,1744284639593,-305.12,0.00042618,5]
[357657112,1744284639602,-301.17,0.00042618,5]
[357657113,1744284639612,-302.28,0.00042618,5]
[357657114,1744284639621,-304.2,0.00042618,5]
[357657115,1744284639630,-303.37,0.00042618,5]
[357657116,1744284639639,-303.39,0.00042618,5]
[357657117,1744284639649,-303.99,0.00042618,5]
[357657118,1744284639658,-302.51,0.00042618,5]
[357657119,1744284639667,-200.0,0.00042626,7]
[357657120,1744284639676,-500.9227074,0.0004265,10]
[357657121,1744284639685,-157.29,0.00042797,2]
[357657122,1744284639694,-1731.02,0.000428,2]
[357657123,1744284639703,-1731.02,0.000428,2]
[357657124,1744284639712,-865.51,0.000428,2]
[357657125,1744284639722,-865.51,0.000428,2]
[357657126,1744284639731,-152.0,0.00042996,6]
[357657127,1744284639740,-9008.89616544,0.00043,2]
[357657128,1744284639749,-418.77256027,0.00043,2]
[357657129,1744284639758,-504.00202443,0.00043,60]
[357657130,1744284639767,-694.44306558,0.00043,2]
[357657131,1744284639777,-214.0,0.00043,7]
[357657132,1744284639786,-55138.60770816,0.00043,2]
[357657133,1744284639795,-13653.39348041,0.00043097,2]
[357657134,1744284639804,-301.98,0.00043136,5]
[357657135,1744284639813,-302.79,0.00043165,5]
[357657136,1744284639822,-303.98,0.00043165,5]
[357657137,1744284639831,-305.72,0.00043165,5]
[357657138,1744284639841,-302.29,0.00043165,5]
[357657139,1744284639850,-305.93,0.00043165,5]
[357657140,1744284639859,-304.37,0.00043165,5]
[357657141,1744284639868,-302.23,0.00043165,5]
[357657142,1744284639877,-500.0,0.000432,120]
[357657143,1744284639886,-1000.0,0.000432,2]
[357657144,1744284639895,-685.0,0.000432,120]
[357657145,1744284639904,-162.41010314,0.000432,15]
[357657146,1744284639914,-1000.0,0.000432,2]
[357657147,1744284639923,-500.0,0.000432,120]
[357657148,1744284639933,-500.0,0.000432,120]
[357657149,1744284639942,-500.0,0.000432,120]
[357657150,1744284639951,-500.0,0.000432,120]
[357657151,1744284639961,-500.0,0.000432,120]
[357657152,1744284639970,-500.0,0.000432,120]
[357657153,1744284639980,-500.0,0.000432,120]
[357657154,1744284639989,-500.0,0.000432,120]
[357657155,1744284639998,-500.0,0.000432,120]
[357657156,1744284640008,-500.0,0.000432,120]
[357657157,1744284640017,-500.0,0.000432,120]
[357657158,1744284640026,-2500.0,0.000432,2]
[357657159,1744284640036,-301.47,0.00043211,5]
[357657160,1744284640045,-303.01,0.00043211,5]
[357657161,1744284640055,-304.92,0.00043211,5]
[357657162,1744284640064,-305.22,0.00043211,5]
[357657163,1744284640074,-301.82,0.00043211,5]
[357657164,1744284640083,-300.19,0.00043211,5]
[357657165,1744284640092,-302.71,0.00043211,5]
[357657166,1744284640102,-304.98,0.00043225,5]
[357657167,1744284640110,-305.82,0.00043225,5]
[357657168,1744284640120,-500.0,0.00043273,10]
[357657169,1744284640129,-429.52085486,0.00043273,10]
[357657170,1744284640138,-500.0,0.00043273,10]
[357657171,1744284640147,-18367.126676,0.0004329,3]
[357657172,1744284640156,-500.0,0.00043299,15]
[357657173,1744284640165,-320.6060056,0.00043299,31]
[357657174,1744284640175,-500.0,0.00043299,31]
[357657175,1744284640184,-500.0,0.00043299,31]
[357657176,1744284640193,-589.28727388,0.00043299,15]
[357657177,1744284640203,-500.0,0.00043299,31]
[357657178,1744284640215,-547.71597568,0.00043299,31]
[357657179,1744284640230,-500.0,0.00043299,31]
[357657180,1744284640239,-500.0,0.00043299,31]
[357657181,1744284640248,-500.0,0.00043299,31]
[357657182,1744284640259,-500.0,0.00043299,31]
[357657183,1744284640268,-500.0,0.000433,120]
[357657184,1744284640277,-500.0,0.000433,120]
[357657185,1744284640287,-500.0,0.000433,120]
[357657186,1744284640297,-500.0,0.000433,120]
[357657187,1744284640306,-500.0,0.000433,120]
[357657188,1744284640315,-500.0,0.000433,120]
[357657189,1744284640325,-500.0,0.000433,120]
[357657190,1744284640335,-500.0,0.000433,120]
[357657192,1744284640343,-500.0,0.000433,120]
[357657193,1744284640355,-500.0,0.000433,120]
[357657195,1744284640364,-500.0,0.000433,120]
[357657196,1744284640373,-500.0,0.000433,120]
[357657197,1744284640382,-500.0,0.000433,120]
[357657198,1744284640391,-500.0,0.000433,120]
[357657199,1744284640401,-500.0,0.000433,120]
[357657200,1744284640410,-500.0,0.000433,120]
[357657201,1744284640419,-500.0,0.000433,120]
[357657202,1744284640428,-500.0,0.000433,120]
[357657203,1744284640438,-500.0,0.000433,120]
[357657204,1744284640447,-500.0,0.000433,120]
[357657205,1744284640455,-500.0,0.000433,120]
[357657206,1744284640465,-500.0,0.000433,120]
[357657207,1744284640474,-500.0,0.000433,120]
[357657208,1744284640484,-500.0,0.000433,120]
[357657209,1744284640493,-500.0,0.000433,120]
[357657210,1744284640503,-500.0,0.000433,120]
[357657211,1744284640512,-500.0,0.000433,120]
[357657212,1744284640521,-500.0,0.000433,120]
[357657213,1744284640530,-500.0,0.000433,120]
[357657214,1744284640539,-500.0,0.000433,120]
[357657215,1744284640548,-500.0,0.000433,120]
[357657216,1744284640557,-500.0,0.000433,120]
[357657217,1744284640566,-500.0,0.000433,120]
[357657218,1744284640575,-500.0,0.000433,120]
[357657219,1744284640584,-500.0,0.000433,120]
[357657220,1744284640594,-500.0,0.000433,120]
[357657221,1744284640603,-500.0,0.000433,120]
[357657222,1744284640613,-500.0,0.000433,120]
[357657223,1744284640627,-500.0,0.000433,120]
[357657224,1744284640637,-500.0,0.000433,120]
[357657225,1744284640647,-500.0,0.000433,120]
[357657226,1744284640658,-500.0,0.000433,120]
[357657227,1744284640668,-500.0,0.000433,120]
[357657228,1744284640678,-500.0,0.000433,120]
[357657229,1744284640688,-500.0,0.000433,120]
[357657230,1744284640698,-500.0,0.000433,120]
[357657231,1744284640707,-500.0,0.000433,120]
[357657232,1744284640717,-500.0,0.000433,120]
[357657233,1744284640727,-500.0,0.000433,120]
[357657234,1744284640737,-500.0,0.000433,120]
[357657235,1744284640747,-500.0,0.000433,120]
[357657236,1744284640757,-500.0,0.000433,120]
[357657237,1744284640766,-880.0,0.000433,120]
[357657238,1744284640776,-500.0,0.000433,120]
[357657239,1744284640786,-500.0,0.000433,120]
[357657240,1744284640795,-500.0,0.000433,120]
[357657241,1744284640805,-500.0,0.000433,120]
[357657242,1744284640815,-500.0,0.000433,120]
[357657243,1744284640824,-500.0,0.000433,120]
[357657244,1744284640834,-500.0,0.000433,120]
[357657245,1744284640843,-500.0,0.000433,120]
[357657246,1744284640853,-500.0,0.000433,120]
[357657247,1744284640863,-500.0,0.000433,120]
[357657248,1744284640872,-500.0,0.000433,120]
[357657249,1744284640881,-500.0,0.000433,120]
[357657250,1744284640891,-500.0,0.000433,120]
[357657251,1744284640901,-500.0,0.000433,120]
[357657252,1744284640910,-500.0,0.000433,120]
[357657253,1744284640920,-500.0,0.000433,120]
[357657254,1744284640929,-500.0,0.000433,120]
[357657255,1744284640938,-500.0,0.000433,120]
[357657256,1744284640947,-500.0,0.000433,120]
[357657257,1744284640958,-500.0,0.000433,120]
[357657258,1744284640968,-500.0,0.000433,120]
[357657259,1744284640977,-500.0,0.000433,120]
[357657260,1744284640987,-500.0,0.000433,120]
[357657261,1744284640996,-500.0,0.000433,120]
[357657262,1744284641005,-500.0,0.000433,120]
[357657263,1744284641015,-500.0,0.000433,120]
[357657264,1744284641024,-852.0,0.000433,120]
[357657265,1744284641034,-500.0,0.000433,120]
[357657266,1744284641044,-500.0,0.000433,120]
[357657267,1744284641055,-500.0,0.000433,120]
[357657268,1744284641065,-500.0,0.000433,120]
[357657269,1744284641075,-500.0,0.000433,120]
[357657270,1744284641085,-500.0,0.000433,120]
[357657271,1744284641097,-500.0,0.000433,120]
[357657272,1744284641107,-500.0,0.000433,120]
[357657273,1744284641116,-500.0,0.000433,120]
[357657274,1744284641126,-500.0,0.000433,120]
[357657275,1744284641136,-500.0,0.000433,120]
[357657276,1744284641146,-500.0,0.000433,120]
[357657277,1744284641156,-500.0,0.000433,120]
[357657278,1744284641166,-500.0,0.000433,120]
[357657279,1744284641176,-500.0,0.000433,120]
[357657280,1744284641186,-500.0,0.000433,120]
[357657281,1744284641197,-500.0,0.000433,120]
[357657282,1744284641206,-500.0,0.000433,120]
[357657283,1744284641218,-500.0,0.000433,120]
[357657284,1744284641228,-500.0,0.000433,120]
[357657285,1744284641238,-500.0,0.000433,120]
[357657286,1744284641248,-500.0,0.000433,120]
[357657287,1744284641258,-500.0,0.000433,120]
[357657288,1744284641268,-500.0,0.000433,120]
[357657289,1744284641277,-500.0,0.000433,120]
[357657290,1744284641287,-500.0,0.000433,120]
[357657291,1744284641298,-500.0,0.000433,120]
[357657292,1744284641308,-500.0,0.000433,120]
[357657293,1744284641318,-500.0,0.000433,120]
[357657294,1744284641329,-500.0,0.000433,120]
[357657295,1744284641339,-669.18,0.000433,33]
[357657296,1744284641349,-669.18,0.000433,33]
[357657297,1744284641360,-669.18,0.000433,33]
[357657298,1744284641370,-669.18,0.000433,33]
[357657299,1744284641380,-669.18,0.000433,33]
[357657300,1744284641390,-669.18,0.000433,33]
[357657301,1744284641400,-669.18,0.000433,33]
[357657302,1744284641410,-669.18,0.000433,33]
[357657303,1744284641420,-669.18,0.000433,33]
[357657304,1744284641430,-669.18,0.000433,33]
[357657305,1744284641440,-669.18,0.000433,33]
[357657306,1744284641449,-669.18,0.000433,33]
[357657307,1744284641459,-150.0,0.00043343,30]
[357657308,1744284641468,-6122.37555866,0.00043389,3]
[357657309,1744284641478,-3535.57010771,0.0004343,120]
[357657310,1744284641487,-167.52,0.0004347,2]
[357657311,1744284641496,-1032.41460958,0.0004347,30]
[357657312,1744284641505,-150.0,0.0004348,30]
[357657313,1744284641515,-36734.253352,0.0004349,3]
[357657314,1744284641524,-71961.56295411,0.000435,2]
[357657315,1744284641534,-1731.02,0.000435,2]
[357657316,1744284641544,-865.51,0.000435,2]
[357657317,1744284641554,-151.0,0.000435,14]
[357657318,1744284641564,-151.0,0.000435,14]
[357657319,1744284641574,-150.0,0.00043513,2]
[357657320,1744284641583,-1000.0,0.00043544,14]
[357657321,1744284641777,-150.0,0.0004357,2]
[357657322,1744284641786,-150.0,0.00043594,2]
[357657323,1744284641796,-150.0,0.00043617,30]
[357657324,1744284641805,-150.0,0.00043618,2]
[357657325,1744284641815,-6122.37555866,0.00043625,3]
[357657326,1744284641824,-1000.0,0.00043635,14]
[357657327,1744284641833,-151.27388592,0.00043635,18]
[357657328,1744284641842,-189.81609194,0.00043635,2]
[357657329,1744284641851,-5000.0,0.00043635,120]
[357657330,1744284641860,-203.29169566,0.00043636,2]
[357657331,1744284641870,-6579.78570682,0.00043636,2]
[357657332,1744284641879,-6122.37555866,0.00043685,3]
[357657333,1744284641889,-1000.0,0.0004369,14]
[357657334,1744284641898,-150.0,0.00043692,2]
[357657335,1744284641908,-5000.0,0.00043694,5]
[357657336,1744284641917,-203.0,0.00043699,120]
[357657337,1744284641928,-5000.0,0.000437,30]
[357657338,1744284641937,-150.5,0.00043706,120]
[357657339,1744284641947,-150.0,0.00043707,2]
[357657340,1744284641956,-150.5,0.00043716,120]
[357657341,1744284641966,-6122.37555866,0.0004372,3]
[357657342,1744284641975,-24489.5022346,0.00043725,3]
[357657343,1744284641985,-150.5,0.00043726,120]
[357657344,1744284641995,-10286.1744704,0.0004373,30]
[357657345,1744284642004,-1000.0,0.0004373,10]
[357657346,1744284642013,-150.0,0.00043734,3]
[357657347,1744284642023,-150.0,0.00043734,3]
[357657348,1744284642032,-500.0,0.00043734,10]
[357657349,1744284642041,-304.609375,0.00043734,10]
[357657350,1744284642051,-151.0,0.00043735,14]
[357657351,1744284642061,-151.0,0.00043735,14]
[357657352,1744284642070,-151.0,0.00043735,14]
[357657353,1744284642079,-151.0,0.00043735,14]
[357657354,1744284642089,-1023.04848397,0.00043735,10]
[357657355,1744284642098,-151.0,0.00043735,14]
[357657356,1744284642107,-151.0,0.00043735,14]
[357657357,1744284642117,-151.0,0.00043735,14]
[357657358,1744284642126,-151.0,0.00043735,14]
[357657359,1744284642135,-151.0,0.00043735,14]
[357657360,1744284642144,-189.38,0.00043735,120]
[357657361,1744284642153,-151.0,0.00043735,14]
[357657362,1744284642162,-151.0,0.00043735,14]
[357657363,1744284642172,-151.0,0.00043735,14]
[357657364,1744284642181,-151.0,0.00043735,14]
[357657365,1744284642191,-151.0,0.00043735,14]
[357657366,1744284642201,-151.0,0.00043735,14]
[357657367,1744284642211,-151.0,0.00043735,14]
[357657368,1744284642223,-151.0,0.00043735,14]
[357657369,1744284642232,-151.0,0.00043735,14]
[357657370,1744284642242,-1000.0,0.00043735,120]
[357657371,1744284642251,-1000.0,0.00043735,120]
[357657372,1744284642262,-1000.0,0.00043735,120]
[357657373,1744284642271,-1000.0,0.00043735,120]
[357657374,1744284642281,-291.220288,0.00043735,14]
[357657375,1744284642291,-1000.0,0.00043735,120]
[357657376,1744284642301,-1000.0,0.00043735,120]
[357657377,1744284642310,-1000.0,0.00043735,120]
[357657378,1744284642319,-1000.0,0.00043735,120]
[357657379,1744284642329,-246.81561592,0.00043735,120]
[357657380,1744284642338,-256.541091,0.00043735,14]
[357657381,1744284642348,-256.541091,0.00043735,14]
[357657382,1744284642357,-256.541091,0.00043735,14]
[357657383,1744284642367,-256.541091,0.00043735,14]
[357657384,1744284642376,-256.541091,0.00043735,14]
[357657385,1744284642385,-256.541091,0.00043735,14]
[357657386,1744284642394,-272.172974,0.00043735,14]
[357657387,1744284642403,-272.172974,0.00043735,14]
[357657388,1744284642413,-272.172974,0.00043735,14]
[357657389,1744284642422,-272.172974,0.00043735,14]
[357657390,1744284642431,-272.172974,0.00043735,14]
[357657391,1744284642441,-272.172974,0.00043735,14]
[357657392,1744284642450,-151.0,0.00043735,14]
[357657393,1744284642459,-256.86243,0.00043735,14]
[357657394,1744284642469,-151.0,0.00043735,14]
[357657395,1744284642478,-255.681345,0.00043735,14]
[357657396,1744284642487,-255.681345,0.00043735,14]
[357657397,1744284642497,-255.681345,0.00043735,14]
[357657398,1744284642506,-255.681345,0.00043735,14]
[357657399,1744284642515,-255.681345,0.00043735,14]
[357657400,1744284642524,-255.681345,0.00043735,14]
[357657401,1744284642533,-283.788095,0.00043735,14]
[357657402,1744284642542,-283.788095,0.00043735,14]
[357657403,1744284642551,-283.788095,0.00043735,14]
[357657404,1744284642560,-283.788095,0.00043735,14]
[357657405,1744284642569,-283.788095,0.00043735,14]
[357657406,1744284642578,-283.788095,0.00043735,14]
[357657407,1744284642588,-151.0,0.00043735,14]
[357657408,1744284642597,-151.0,0.00043735,14]
[357657409,1744284642607,-151.0,0.00043735,14]
[357657410,1744284642617,-151.0,0.00043735,14]
[357657411,1744284642626,-151.0,0.00043735,14]
[357657412,1744284642635,-151.0,0.00043735,14]
[357657413,1744284642644,-151.0,0.00043735,14]
[357657414,1744284642654,-151.0,0.00043735,14]
[357657415,1744284642663,-151.0,0.00043735,14]
[357657416,1744284642673,-269.46434,0.00043735,14]
[357657417,1744284642682,-269.46434,0.00043735,14]
[357657418,1744284642691,-269.46434,0.00043735,14]
[357657419,1744284642701,-151.0,0.00043735,14]
[357657420,1744284642710,-151.0,0.00043735,14]
[357657421,1744284642719,-151.0,0.00043735,14]
[357657422,1744284642728,-151.0,0.00043735,14]
[357657423,1744284642737,-151.0,0.00043735,14]
[357657424,1744284642746,-206.659228,0.00043735,14]
[357657425,1744284642755,-151.0,0.00043735,14]
[357657426,1744284642764,-151.0,0.00043735,14]
[357657427,1744284642773,-258.501813,0.00043735,14]
[357657428,1744284642782,-151.0,0.00043735,14]
[357657429,1744284642791,-151.0,0.00043735,14]
[357657430,1744284642800,-151.0,0.00043735,14]
[357657431,1744284642809,-151.0,0.00043735,14]
[357657432,1744284642818,-151.0,0.00043735,14]
[357657433,1744284642827,-151.0,0.00043735,14]
[357657434,1744284642837,-151.0,0.00043735,14]
[357657435,1744284642847,-151.0,0.00043735,14]
[357657436,1744284642858,-151.0,0.00043735,14]
[357657437,1744284642868,-274.044251,0.00043735,14]
[357657438,1744284642878,-151.0,0.00043735,14]
[357657439,1744284642887,-163.300805,0.00043735,14]
[357657440,1744284642897,-151.0,0.00043735,14]
[357657441,1744284642906,-151.0,0.00043735,14]
[357657442,1744284642916,-151.0,0.00043735,14]
[357657443,1744284642927,-151.0,0.00043735,14]
[357657444,1744284642936,-151.0,0.00043735,14]
[357657445,1744284642945,-151.0,0.00043735,14]
[357657446,1744284642954,-151.0,0.00043735,14]
[357657447,1744284642963,-151.0,0.00043735,14]
[357657448,1744284642973,-151.0,0.00043735,14]
[357657449,1744284642982,-217.569531,0.00043735,14]
[357657450,1744284642991,-151.0,0.00043735,14]
[357657451,1744284643000,-151.0,0.00043735,14]
[357657452,1744284643010,-151.0,0.00043735,14]
[357657453,1744284643018,-151.0,0.00043735,14]
[357657454,1744284643028,-151.0,0.00043735,14]
[357657455,1744284643037,-151.0,0.00043735,14]
[357657456,1744284643046,-219.261141,0.00043735,14]
[357657457,1744284643055,-1366.751077,0.00043735,14]
[357657458,1744284643064,-1366.751077,0.00043735,14]
[357657459,1744284643073,-1366.751077,0.00043735,14]
[357657460,1744284643082,-1366.751077,0.00043735,14]
[357657461,1744284643091,-1366.751077,0.00043735,14]
[357657463,1744284643101,-1366.751077,0.00043735,14]
[357657465,1744284643111,-151.0,0.00043735,14]
[357657466,1744284643119,-151.0,0.00043735,14]
[357657467,1744284643128,-264.120459,0.00043735,14]
[357657468,1744284643137,-151.0,0.00043735,14]
[357657469,1744284643147,-151.0,0.00043735,14]
[357657471,1744284643156,-151.0,0.00043735,14]
[357657473,1744284643165,-151.0,0.00043735,14]
[357657475,1744284643175,-164.955194,0.00043735,14]
[357657476,1744284643184,-984.944002,0.00043735,14]
[357657477,1744284643193,-984.944002,0.00043735,14]
[357657478,1744284643202,-984.944002,0.00043735,14]
[357657479,1744284643211,-984.944002,0.00043735,14]
[357657480,1744284643224,-984.944002,0.00043735,14]
[357657481,1744284643233,-984.944002,0.00043735,14]
[357657482,1744284643242,-984.944002,0.00043735,14]
[357657483,1744284643251,-984.944002,0.00043735,14]
[357657484,1744284643262,-283.285328,0.00043735,14]
[357657485,1744284643271,-283.285328,0.00043735,14]
[357657486,1744284643281,-283.285328,0.00043735,14]
[357657487,1744284643290,-283.285328,0.00043735,14]
[357657488,1744284643300,-283.285328,0.00043735,14]
[357657489,1744284643310,-283.285328,0.00043735,14]
[357657490,1744284643319,-283.285328,0.00043735,14]
[357657491,1744284643329,-283.285328,0.00043735,14]
[357657492,1744284643338,-151.0,0.00043735,14]
[357657493,1744284643347,-151.0,0.00043735,14]
[357657494,1744284643357,-151.0,0.00043735,14]
[357657495,1744284643367,-151.0,0.00043735,14]
[357657496,1744284643376,-151.0,0.00043735,14]
[357657497,1744284643386,-151.0,0.00043735,14]
[357657498,1744284643395,-204.612428,0.00043735,14]
[357657499,1744284643405,-151.0,0.00043735,14]
[357657500,1744284643414,-151.0,0.00043735,14]
[357657501,1744284643423,-151.0,0.00043735,14]
[357657502,1744284643432,-151.0,0.00043735,14]
[357657503,1744284643441,-151.0,0.00043735,14]
[357657504,1744284643451,-151.0,0.00043735,14]
[357657505,1744284643461,-151.0,0.00043735,14]
[357657506,1744284643470,-151.0,0.00043735,14]
[357657507,1744284643480,-152.455894,0.00043735,14]
[357657508,1744284643489,-151.0,0.00043735,14]
[357657509,1744284643498,-151.0,0.00043735,14]
[357657510,1744284643508,-151.0,0.00043735,14]
[357657511,1744284643518,-151.0,0.00043735,14]
[357657512,1744284643527,-151.0,0.00043735,14]
[357657513,1744284643537,-151.0,0.00043735,14]
[357657514,1744284643546,-151.0,0.00043735,14]
[357657515,1744284643556,-155.984912,0.00043735,14]
[357657516,1744284643565,-155.984912,0.00043735,14]
[357657517,1744284643579,-155.984912,0.00043735,14]
[357657518,1744284643592,-155.984912,0.00043735,14]
[357657519,1744284643604,-155.984912,0.00043735,14]
[357657520,1744284643614,-155.984912,0.00043735,14]
[357657521,1744284643623,-155.984912,0.00043735,14]
[357657522,1744284643634,-155.984912,0.00043735,14]
[357657523,1744284643645,-151.0,0.00043735,14]
[357657524,1744284643655,-151.0,0.00043735,14]
[357657525,1744284643666,-151.0,0.00043735,14]
[357657526,1744284643677,-151.0,0.00043735,14]
[357657527,1744284643688,-151.0,0.00043735,14]
[357657528,1744284643698,-151.0,0.00043735,14]
[357657529,1744284643707,-151.0,0.00043735,14]
[357657530,1744284643718,-151.0,0.00043735,14]
[357657531,1744284643728,-151.0,0.00043735,14]
[357657532,1744284643738,-1924.0,0.00043735,7]
[357657533,1744284643748,-54855.21940991,0.00043735,30]
[357657534,1744284644577,-2861.28472691,0.00043735,30]
[357657560,1744284645918,-328.334985,0.00039163,30]
[357657561,1744284645929,-293.26855382,0.00039163,30]
[357657562,1744284646133,-500.0,0.00043299,31]
[357657563,1744284646142,-500.0,0.00043299,31]
[357657564,1744284646152,-1978.90272618,0.00043735,30]
[357657565,1744284646182,-2785.75829986,0.00043735,30]
[357657568,1744285193382,500.01,0.00035,30]
[357657571,1744285540099,-250.0,0.00019,2]
[357657572,1744285540120,-178.9493,0.000209,2]
[357657573,1744285540143,-300.0,0.00021,2]
[357657574,1744285540164,-250.0,0.00025693,2]
[357657575,1744285540185,-56.26476005,0.00026849,2]
[357657576,1744285641418,-159.36523995,0.00026849,2]
[357657577,1744285641439,-215.63,0.00032646,2]
[357657578,1744285641460,-233.2520211,0.00035,2]
[357657579,1744285643459,-15.23466495,0.00035,2]
[357657580,1744285643480,-990.921,0.00035014,30]
[357657581,1744285643501,-160.34070726,0.00038343,2]
[357657582,1744285643523,-215.63,0.00038443,2]
[357657583,1744285643549,-377.0,0.00038466,2]
[357657584,1744285643568,-500.0,0.0003932,45]
[357657585,1744285643589,-159.0,0.00041,14]
[357657586,1744285643611,-156.14,0.00041808,2]
[357657587,1744285643632,-576.003,0.00041842,2]
[357657588,1744285643655,-9593.57531226,0.0004187,30]
[357657589,1744285647102,-623.89543287,0.0004187,30]
[357657590,1744285651077,-1344.43969341,0.00041807,30]
[357657591,1744285652129,-170.76218106,0.00041807,30]
[357657592,1744285652149,-200.45263898,0.0004187,30]